{"text_format":"1","workbook":"xlsx","n_sheets":1,"sheets":["ورقة1"],"not_rendered":{"charts":0,"images":0,"macros":0,"external_links":1,"defined_names":1,"comments":0,"pivot_tables":0},"unopened":[],"bounds":{"document_bytes":16777216,"sheet_cells":100000,"rows_first":2000,"rows_last":500,"rows_between":2000,"halvings":0,"cell_chars":16384,"cell_head_chars":4096},"cells_cut":0,"cells_raw":0,"read":"whole","date_system":"1900"}

{"sheet":"ورقة1","index":0,"n_rows":28,"n_cols":7,"rows_kept":28,"cut":false,"hidden":false,"merged":[[17,1,17,2],[17,3,17,4]]}
["فا"]
[null,"الاسم","ابراهيم الصيد المصروب العموري","سنة",2019,null,"النتيجة التوقعة"]
[]
[null,"شهر الغياب","أيام الغياب","أيام الغياب بالحروف","عدد أيام الغياب",null,"اسم أيام الغياب"]
[1,"يناير","27 -17 -7 -2 -1 ","خمسة أيام",5,null,"الثلاثاء - الأربعاء  - الأثنين - الحميس  - الاحد"]
[2,"فبراير","-","-","-"]
[3,"مارس","-","-","-"]
[4,"ابريل","-","-","-"]
[5,"مايو","-","-","-"]
[6,"يونيو","-","-","-"]
[7,"يوليو","-","-","-"]
[8,"أغسطس","-","-","-"]
[9,"سبتمبر","27 -25 -18 -13 -9 ","خمسة أيام",5]
[10,"أكتوبر","16 -10 -8 ","ثلاثة أيام",3]
[11,"نوفمبر","27 -14 -8 -6 ","أربعة أيام",4]
[12,"ديسمبر","10 -5 ","يومـــان",2]
[]
[null,"عـــــدد أيــــــــــــام الغيـــــــــــــــــاب خـــــــــــــــــــــلال السنــــــــــــــــة ",null,{"$f":"SUM(E5:E17)","v":19}]
[null,null,{"$f":"IFERROR(INDEX('[1]أرشيف الغياب'!#REF!,MATCH(D4,'[1]أرشيف الغياب'!#REF!,0)),\"\")","v":""},{"$f":"IFERROR(INDEX('[1]أرشيف الغياب'!#REF!,MATCH(D4,'[1]أرشيف الغياب'!#REF!,0)),\"\")","v":""},{"$f":"IFERROR(INDEX('[1]أرشيف الغياب'!#REF!,MATCH(D4,'[1]أرشيف الغياب'!#REF!,0)),\"\")","v":""}]
[null,null,{"$f":"IFERROR(INDEX('[1]أرشيف الغياب'!#REF!,MATCH(D5,'[1]أرشيف الغياب'!#REF!,0)),\"\")","v":""},{"$f":"IFERROR(INDEX('[1]أرشيف الغياب'!#REF!,MATCH(D5,'[1]أرشيف الغياب'!#REF!,0)),\"\")","v":""},{"$f":"IFERROR(INDEX('[1]أرشيف الغياب'!#REF!,MATCH(D5,'[1]أرشيف الغياب'!#REF!,0)),\"\")","v":""}]
[null,null,{"$f":"IFERROR(INDEX('[1]أرشيف الغياب'!#REF!,MATCH(#REF!,'[1]أرشيف الغياب'!#REF!,0)),\"\")","v":""},{"$f":"IFERROR(INDEX('[1]أرشيف الغياب'!#REF!,MATCH(#REF!,'[1]أرشيف الغياب'!#REF!,0)),\"\")","v":""},{"$f":"IFERROR(INDEX('[1]أرشيف الغياب'!#REF!,MATCH(#REF!,'[1]أرشيف الغياب'!#REF!,0)),\"\")","v":""}]
[null,null,{"$f":"IFERROR(INDEX('[1]أرشيف الغياب'!#REF!,MATCH(D19,'[1]أرشيف الغياب'!#REF!,0)),\"\")","v":""},{"$f":"IFERROR(INDEX('[1]أرشيف الغياب'!#REF!,MATCH(D19,'[1]أرشيف الغياب'!#REF!,0)),\"\")","v":""},{"$f":"IFERROR(INDEX('[1]أرشيف الغياب'!#REF!,MATCH(D19,'[1]أرشيف الغياب'!#REF!,0)),\"\")","v":""}]
[null,null,{"$f":"IFERROR(INDEX('[1]أرشيف الغياب'!#REF!,MATCH(D20,'[1]أرشيف الغياب'!#REF!,0)),\"\")","v":""},{"$f":"IFERROR(INDEX('[1]أرشيف الغياب'!#REF!,MATCH(D20,'[1]أرشيف الغياب'!#REF!,0)),\"\")","v":""},{"$f":"IFERROR(INDEX('[1]أرشيف الغياب'!#REF!,MATCH(D20,'[1]أرشيف الغياب'!#REF!,0)),\"\")","v":""}]
[null,null,{"$f":"IFERROR(INDEX('[1]أرشيف الغياب'!#REF!,MATCH(D21,'[1]أرشيف الغياب'!#REF!,0)),\"\")","v":""},{"$f":"IFERROR(INDEX('[1]أرشيف الغياب'!#REF!,MATCH(D21,'[1]أرشيف الغياب'!#REF!,0)),\"\")","v":""},{"$f":"IFERROR(INDEX('[1]أرشيف الغياب'!#REF!,MATCH(D21,'[1]أرشيف الغياب'!#REF!,0)),\"\")","v":""}]
[null,null,{"$f":"IFERROR(INDEX('[1]أرشيف الغياب'!#REF!,MATCH(D22,'[1]أرشيف الغياب'!#REF!,0)),\"\")","v":""},{"$f":"IFERROR(INDEX('[1]أرشيف الغياب'!#REF!,MATCH(D22,'[1]أرشيف الغياب'!#REF!,0)),\"\")","v":""},{"$f":"IFERROR(INDEX('[1]أرشيف الغياب'!#REF!,MATCH(D22,'[1]أرشيف الغياب'!#REF!,0)),\"\")","v":""}]
[null,null,{"$f":"IFERROR(INDEX('[1]أرشيف الغياب'!#REF!,MATCH(D23,'[1]أرشيف الغياب'!#REF!,0)),\"\")","v":""},{"$f":"IFERROR(INDEX('[1]أرشيف الغياب'!#REF!,MATCH(D23,'[1]أرشيف الغياب'!#REF!,0)),\"\")","v":""},{"$f":"IFERROR(INDEX('[1]أرشيف الغياب'!#REF!,MATCH(D23,'[1]أرشيف الغياب'!#REF!,0)),\"\")","v":""}]
[null,null,{"$f":"IFERROR(INDEX('[1]أرشيف الغياب'!#REF!,MATCH(D24,'[1]أرشيف الغياب'!#REF!,0)),\"\")","v":""},{"$f":"IFERROR(INDEX('[1]أرشيف الغياب'!#REF!,MATCH(D24,'[1]أرشيف الغياب'!#REF!,0)),\"\")","v":""},{"$f":"IFERROR(INDEX('[1]أرشيف الغياب'!#REF!,MATCH(D24,'[1]أرشيف الغياب'!#REF!,0)),\"\")","v":""}]
[null,null,{"$f":"IFERROR(INDEX('[1]أرشيف الغياب'!#REF!,MATCH(D25,'[1]أرشيف الغياب'!#REF!,0)),\"\")","v":""},{"$f":"IFERROR(INDEX('[1]أرشيف الغياب'!#REF!,MATCH(D25,'[1]أرشيف الغياب'!#REF!,0)),\"\")","v":""},{"$f":"IFERROR(INDEX('[1]أرشيف الغياب'!#REF!,MATCH(D25,'[1]أرشيف الغياب'!#REF!,0)),\"\")","v":""}]